fUST/lending_fUST_20250619
["ID","MTS","AMOUNT","RATE_DAILY","PERIOD"]
[366568240,1750323045343,-460.0,0.00021917,6]
[366568241,1750323045352,-460.0,0.00021917,6]
[366568242,1750323045362,-460.0,0.00021917,6]
[366568243,1750323045371,-319.61778017,0.00021917,6]
[366568244,1750323045382,-440.846235,0.00021917,2]
[366568245,1750323045391,-440.846235,0.00021917,2]
[366568246,1750323045402,-440.846235,0.00021917,2]
[366568247,1750323045411,-440.846235,0.00021917,2]
[366568248,1750323045421,-440.846235,0.00021917,2]
[366568249,1750323045430,-440.846235,0.00021917,2]
[366568250,1750323045439,-440.846235,0.00021917,2]
[366568251,1750323045449,-440.846235,0.00021917,2]
[366568252,1750323045459,-460.0,0.00021917,6]
[366568253,1750323045469,-440.846235,0.00021917,2]
[366568254,1750323045479,-440.846235,0.00021917,2]
[366568255,1750323045488,-652.45,0.00021917,6]
[366568256,1750323045498,-460.0,0.00021917,6]
[366568257,1750323045509,-440.846235,0.00021917,2]
[366568258,1750323045518,-440.846235,0.00021917,2]
[366568259,1750323045528,-440.846235,0.00021917,2]
[366568260,1750323045537,-440.846235,0.00021917,2]
[366568261,1750323045547,-440.846235,0.00021917,2]
[366568262,1750323045556,-440.846238,0.00021917,2]
[366568263,1750323045566,-594.37,0.00021917,6]
[366568264,1750323045575,-460.0,0.00021917,6]
[366568265,1750323045584,-460.0,0.00021917,6]
[366568266,1750323045593,-460.0,0.00021917,6]
[366568267,1750323045602,-460.0,0.00021917,6]
[366568268,1750323045611,-303.48287227,0.00021917,6]
[366568269,1750323045620,-400.0,0.00021917,6]
[366568270,1750323045630,-1557.98,0.00021917,6]
[366568271,1750323045639,-495.04161877,0.00021917,6]
[366568272,1750323045648,-460.0,0.00021917,6]
[366568273,1750323045658,-460.0,0.00021917,6]
[366568274,1750323045667,-962.16,0.00021917,6]
[366568275,1750323045676,-460.0,0.00021917,6]
[366568276,1750323045685,-460.0,0.00021917,6]
[366568277,1750323045694,-460.0,0.00021917,6]
[366568278,1750323045704,-460.0,0.00021917,6]
[366568279,1750323045713,-460.0,0.00021917,6]
[366568280,1750323045722,-460.0,0.00021917,6]
[366568281,1750323045731,-460.0,0.00021917,6]
[366568282,1750323045827,-460.0,0.00021917,6]
[366568283,1750323045848,-460.0,0.00021917,6]
[366568284,1750323045858,-460.0,0.00021917,6]
[366568285,1750323045867,-460.0,0.00021917,6]
[366568286,1750323045877,-460.0,0.00021917,6]
[366568287,1750323045887,-460.0,0.00021917,6]
[366568288,1750323045896,-460.0,0.00021917,6]
[366568289,1750323045906,-780.48,0.00021917,6]
[366568290,1750323045916,-460.0,0.00021917,6]
[366568291,1750323045925,-460.0,0.00021917,6]
[366568292,1750323045934,-460.0,0.00021917,6]
[366568293,1750323045943,-460.0,0.00021917,6]
[366568294,1750323045953,-283.507897,0.00021917,2]
[366568295,1750323045962,-283.507897,0.00021917,2]
[366568296,1750323045972,-283.507897,0.00021917,2]
[366568297,1750323045981,-460.0,0.00021917,6]
[366568298,1750323045990,-283.507897,0.00021917,2]
[366568299,1750323046000,-460.0,0.00021917,6]
[366568300,1750323046010,-283.507897,0.00021917,2]
[366568301,1750323046019,-283.507896,0.00021917,2]
[366568302,1750323046028,-453.24884001,0.00021917,6]
[366568303,1750323046038,-436.18090187,0.00021917,6]
[366568304,1750323046048,-460.0,0.00021917,6]
[366568305,1750323046057,-460.0,0.00021917,6]
[366568306,1750323046066,-460.0,0.00021917,6]
[366568307,1750323046076,-500.0,0.00021917,6]
[366568308,1750323046085,-396.16182874,0.00021917,6]
[366568309,1750323046094,-460.0,0.00021917,6]
[366568310,1750323046109,-151.0,0.00021917,2]
[366568311,1750323046118,-151.0,0.00021917,2]
[366568312,1750323046127,-151.0,0.00021917,2]
[366568313,1750323046137,-460.0,0.00021917,6]
[366568314,1750323046147,-460.0,0.00021917,6]
[366568315,1750323046156,-460.0,0.00021917,6]
[366568316,1750323046165,-460.0,0.00021917,6]
[366568317,1750323046176,-460.0,0.00021917,6]
[366568318,1750323046186,-460.0,0.00021917,6]
[366568319,1750323046195,-451.98657689,0.00021917,6]
[366568320,1750323046204,-460.0,0.00021917,6]
[366568321,1750323046214,-460.0,0.00021917,6]
[366568322,1750323046223,-460.0,0.00021917,6]
[366568323,1750323046232,-460.0,0.00021917,6]
[366568324,1750323046242,-460.0,0.00021917,6]
[366568325,1750323046251,-460.0,0.00021917,6]
[366568326,1750323046260,-460.0,0.00021917,6]
[366568327,1750323046270,-413.11273115,0.00021917,6]
[366568328,1750323046280,-460.0,0.00021917,6]
[366568329,1750323046290,-441.73447325,0.00021917,6]
[366568330,1750323046299,-3247.83,0.00021917,6]
[366568331,1750323046308,-540.0,0.00021917,6]
[366568332,1750323046318,-460.0,0.00021917,6]
[366568333,1750323046327,-337.75577609,0.00021917,6]
[366568334,1750323046336,-495.78953446,0.00021917,6]
[366568335,1750323046346,-450.25460389,0.00021917,6]
[366568336,1750323046355,-460.0,0.00021917,6]
[366568337,1750323046365,-609.23,0.00021917,6]
[366568338,1750323046374,-460.0,0.00021917,6]
[366568339,1750323046383,-662.2,0.00021917,6]
[366568340,1750323046392,-460.0,0.00021917,6]
[366568341,1750323046401,-434.22449369,0.00021917,6]
[366568342,1750323046410,-460.0,0.00021917,6]
[366568343,1750323046419,-177.4559475,0.00021917,6]
[366568344,1750323046429,-460.0,0.00021917,6]
[366568345,1750323046438,-460.0,0.00021917,6]
[366568346,1750323046447,-430.0,0.00021917,6]
[366568347,1750323046457,-460.0,0.00021917,6]
[366568348,1750323046466,-460.60111219,0.00021917,6]
[366568349,1750323046475,-693.365589,0.00021917,2]
[366568350,1750323046484,-500.0,0.00021917,6]
[366568351,1750323046494,-500.0,0.00021917,6]
[366568352,1750323046503,-500.0,0.00021917,6]
[366568353,1750323046512,-500.0,0.00021917,6]
[366568354,1750323046522,-500.0,0.00021917,6]
[366568355,1750323046531,-500.0,0.00021917,6]
[366568356,1750323046540,-500.0,0.00021917,6]
[366568357,1750323046549,-634.4737577,0.00021917,6]
[366568358,1750323046558,-460.0,0.00021917,6]
[366568359,1750323046567,-460.0,0.00021917,6]
[366568360,1750323046576,-460.0,0.00021917,6]
[366568361,1750323046585,-693.365594,0.00021917,2]
[366568362,1750323046594,-460.0,0.00021917,6]
[366568363,1750323046603,-460.0,0.00021917,6]
[366568364,1750323046612,-460.0,0.00021917,6]
[366568365,1750323046621,-460.0,0.00021917,6]
[366568366,1750323046629,-4187.38,0.00021917,6]
[366568367,1750323046638,-460.0,0.00021917,6]
[366568368,1750323046647,-2997.19,0.00021917,6]
[366568369,1750323046656,-436.61533083,0.00021917,6]
[366568370,1750323046665,-636.04,0.00021917,6]
[366568371,1750323046675,-460.0,0.00021917,6]
[366568372,1750323046684,-3797.69,0.00021917,6]
[366568373,1750323046693,-431.55075061,0.00021917,6]
[366568374,1750323046702,-420.0,0.00021917,6]
[366568375,1750323046712,-460.0,0.00021917,6]
[366568376,1750323046721,-460.0,0.00021917,6]
[366568377,1750323046731,-3514.08,0.00021917,6]
[366568378,1750323046740,-460.0,0.00021917,6]
[366568379,1750323046750,-444.65624438,0.00021917,6]
[366568380,1750323046760,-460.0,0.00021917,6]
[366568381,1750323046769,-440.0,0.00021917,6]
[366568382,1750323046779,-479.17295753,0.00021917,6]
[366568383,1750323046788,-4742.16,0.00021917,6]
[366568384,1750323046797,-275.36396146,0.00021917,6]
[366568385,1750323046806,-272.04760854,0.00021917,6]
[366568386,1750323046816,-460.0,0.00021917,6]
[366568387,1750323046826,-434.49710221,0.00021917,6]
[366568388,1750323046836,-432.13181176,0.00021917,6]
[366568389,1750323046845,-460.0,0.00021917,6]
[366568390,1750323046855,-230.27167017,0.00021917,6]
[366568391,1750323046868,-812.28,0.00021917,6]
[366568392,1750323046878,-427.52835199,0.00021917,6]
[366568393,1750323046888,-585.12626078,0.00021917,2]
[366568394,1750323046897,-460.0,0.00021917,6]
[366568395,1750323046906,-370.0,0.00021917,6]
[366568396,1750323046916,-460.0,0.00021917,6]
[366568397,1750323046925,-443.61368992,0.00021917,6]
[366568398,1750323046934,-460.0,0.00021917,6]
[366568399,1750323046944,-1346.37,0.00021917,6]
[366568400,1750323046954,-460.0,0.00021917,6]
[366568401,1750323046964,-449.80827875,0.00021917,6]
[366568402,1750323046973,-460.0,0.00021917,6]
[366568403,1750323046982,-460.0,0.00021917,6]
[366568404,1750323046992,-460.0,0.00021917,6]
[366568405,1750323047003,-1260.48,0.00021917,6]
[366568406,1750323047013,-1021.15,0.00021917,6]
[366568407,1750323047022,-440.0,0.00021917,6]
[366568408,1750323047031,-433.51706547,0.00021917,6]
[366568409,1750323047040,-460.0,0.00021917,6]
[366568410,1750323047049,-460.23179445,0.00021917,6]
[366568411,1750323047058,-440.0,0.00021917,6]
[366568412,1750323047068,-460.0,0.00021917,6]
[366568413,1750323047077,-400.0,0.00021917,6]
[366568414,1750323047087,-460.0,0.00021917,6]
[366568415,1750323047096,-482.96218221,0.00021917,6]
[366568417,1750323047109,-231.140577,0.00021917,2]
[366568419,1750323047118,-231.140577,0.00021917,2]
[366568420,1750323047127,-405.90553827,0.00021917,6]
[366568422,1750323047136,-231.140577,0.00021917,2]
[366568424,1750323047147,-460.0,0.00021917,6]
[366568426,1750323047156,-1648.89,0.00021917,6]
[366568427,1750323047165,-231.140577,0.00021917,2]
[366568428,1750323047175,-460.0,0.00021917,6]
[366568430,1750323047184,-231.140577,0.00021917,2]
[366568432,1750323047194,-423.40622762,0.00021917,6]
[366568434,1750323047203,-231.140568,0.00021917,2]
[366568436,1750323047213,-1604.4,0.00021917,6]
[366568438,1750323047222,-460.0,0.00021917,6]
[366568440,1750323047231,-460.0,0.00021917,6]
[366568442,1750323047240,-460.0,0.00021917,6]
[366568444,1750323047249,-373.05866487,0.00021917,6]
[366568446,1750323047258,-185.47261619,0.00021917,6]
[366568448,1750323047267,-534.91,0.00021917,6]
[366568450,1750323047276,-460.0,0.00021917,6]
[366568452,1750323047286,-460.0,0.00021917,6]
[366568454,1750323047296,-632.81,0.00021917,6]
[366568456,1750323047305,-460.56,0.00021917,6]
[366568458,1750323047315,-428.15526215,0.00021917,6]
[366568461,1750323047324,-460.0,0.00021917,6]
[366568463,1750323047333,-460.0,0.00021917,6]
[366568465,1750323047343,-460.0,0.00021917,6]
[366568467,1750323047353,-460.0,0.00021917,6]
[366568469,1750323047362,-460.0,0.00021917,6]
[366568471,1750323047371,-460.0,0.00021917,6]
[366568473,1750323047380,-460.0,0.00021917,6]
[366568475,1750323047389,-510.92187301,0.00021917,6]
[366568477,1750323047399,-298.2784253,0.00021917,6]
[366568479,1750323047409,-460.0,0.00021917,6]
[366568481,1750323047418,-430.0,0.00021917,6]
[366568483,1750323047427,-530.53,0.00021917,6]
[366568485,1750323047436,-460.0,0.00021917,6]
[366568487,1750323047445,-460.0,0.00021917,6]
[366568489,1750323047454,-450.41373447,0.00021917,6]
[366568491,1750323047463,-601.2848983,0.00021917,6]
[366568493,1750323047472,-460.0,0.00021917,6]
[366568495,1750323047481,-473.23,0.00021917,6]
[366568497,1750323047491,-581.44,0.00021917,6]
[366568499,1750323047500,-402.63028104,0.00021917,6]
[366568501,1750323047509,-460.0,0.00021917,6]
[366568503,1750323047518,-300.94274445,0.00021917,6]
[366568505,1750323047527,-423.31849834,0.00021917,6]
[366568507,1750323047536,-1562.63,0.00021917,6]
[366568508,1750323047545,-460.0,0.00021917,6]
[366568510,1750323047554,-460.0,0.00021917,6]
[366568512,1750323047563,-460.0,0.00021917,6]
[366568514,1750323047572,-446.05953334,0.00021917,6]
[366568516,1750323047581,-430.0,0.00021917,6]
[366568518,1750323047590,-366.05690992,0.00021917,6]
[366568520,1750323047599,-543.82,0.00021917,6]
[366568522,1750323047608,-825.1,0.00021917,6]
[366568524,1750323047617,-430.0,0.00021917,6]
[366568526,1750323047627,-460.0,0.00021917,6]
[366568528,1750323047635,-460.0,0.00021917,6]
[366568530,1750323047644,-300.0,0.00021917,2]
[366568532,1750323047653,-460.0,0.00021917,6]
[366568534,1750323047662,-460.0,0.00021917,6]
[366568536,1750323047671,-994.22,0.00021917,6]
[366568538,1750323047681,-460.0,0.00021917,6]
[366568540,1750323047689,-403.57702739,0.00021917,6]
[366568542,1750323047699,-308.88572832,0.00021917,6]
[366568544,1750323047708,-460.0,0.00021917,6]
[366568546,1750323047717,-460.0,0.00021917,6]
[366568548,1750323047726,-460.0,0.00021917,6]
[366568550,1750323047735,-1174.95,0.00021917,6]
[366568552,1750323047744,-460.0,0.00021917,6]
[366568554,1750323047753,-460.0,0.00021917,6]
[366568556,1750323047762,-1602.75,0.00021917,6]
[366568558,1750323047771,-400.0,0.00021917,6]
[366568560,1750323047780,-460.0,0.00021917,6]
[366568562,1750323047789,-460.0,0.00021917,6]
[366568564,1750323047798,-498.72109298,0.00021917,6]
[366568566,1750323047807,-460.0,0.00021917,6]
[366568568,1750323047816,-151.0,0.00021917,2]
[366568570,1750323047826,-460.0,0.00021917,6]
[366568572,1750323047835,-460.0,0.00021917,6]
[366568574,1750323047844,-151.0,0.00021917,2]
[366568576,1750323047853,-460.0,0.00021917,6]
[366568578,1750323047862,-440.0,0.00021917,6]
[366568580,1750323047871,-460.0,0.00021917,6]
[366568582,1750323047880,-440.0,0.00021917,6]
[366568584,1750323047888,-460.0,0.00021917,6]
[366568586,1750323047897,-425.14569605,0.00021917,6]
[366568588,1750323047907,-577.56,0.00021917,6]
[366568590,1750323047916,-440.0,0.00021917,6]
[366568592,1750323047925,-441.18271004,0.00021917,6]
[366568594,1750323047934,-460.0,0.00021917,6]
[366568596,1750323047943,-460.0,0.00021917,6]
[366568598,1750323047952,-460.0,0.00021917,6]
[366568600,1750323047962,-457.01784821,0.00021917,6]
[366568602,1750323047971,-460.0,0.00021917,6]
[366568614,1750323048073,-460.0,0.00021917,6]
[366568616,1750323048084,-420.0,0.00021917,6]
[366568618,1750323048095,-460.0,0.00021917,6]
[366568620,1750323048106,-460.0,0.00021917,6]
[366568622,1750323048116,-460.0,0.00021917,6]
[366568624,1750323048125,-451.55901371,0.00021917,6]
[366568626,1750323048134,-460.0,0.00021917,6]
[366568628,1750323048144,-529.95622086,0.00021917,6]
[366568630,1750323048154,-350.13444175,0.00021917,6]
[366568632,1750323048163,-671.56,0.00021917,6]
[366568634,1750323048172,-460.0,0.00021917,6]
[366568636,1750323048182,-417.29878195,0.00021917,6]
[366568638,1750323048191,-517.86149095,0.00021917,6]
[366568640,1750323048200,-917.53,0.00021917,6]
[366568642,1750323048210,-2493.94,0.00021917,6]
[366568644,1750323048220,-438.75664657,0.00021917,6]
[366568646,1750323048230,-718.48,0.00021917,6]
[366568648,1750323048239,-460.0,0.00021917,6]
[366568650,1750323048249,-460.0,0.00021917,6]
[366568652,1750323048259,-460.0,0.00021917,6]
[366568654,1750323048268,-434.52499164,0.00021917,6]
[366568656,1750323048278,-460.0,0.00021917,6]
[366568658,1750323048288,-599.69,0.00021917,6]
[366568660,1750323048297,-566.72071813,0.00021917,6]
[366568662,1750323048307,-760.25,0.00021917,6]
[366568664,1750323048316,-460.0,0.00021917,6]
[366568666,1750323048326,-1651.95,0.00021917,6]
[366568668,1750323048335,-449.51755106,0.00021917,6]
[366568670,1750323048345,-3049.72,0.00021917,6]
[366568672,1750323048355,-286.57418429,0.00021917,6]
[366568674,1750323048364,-460.0,0.00021917,6]
[366568676,1750323048374,-460.0,0.00021917,6]
[366568678,1750323048383,-633.28,0.00021917,6]
[366568680,1750323048393,-151.0,0.00021918,2]
[366568682,1750323048404,-151.0,0.00021918,2]
[366568684,1750323048414,-151.0,0.00021918,2]
[366568686,1750323048424,-151.0,0.00021918,2]
[366568688,1750323048433,-151.0,0.00021918,2]
[366568690,1750323048442,-151.0,0.00021918,2]
[366568692,1750323048452,-151.0,0.00021918,2]
[366568694,1750323048462,-151.0,0.00021918,2]
[366568696,1750323048471,-151.0,0.00021918,2]
[366568698,1750323048481,-151.0,0.00021918,2]
[366568700,1750323048490,-151.0,0.00021918,2]
[366568702,1750323048499,-151.0,0.00021918,2]
[366568704,1750323048509,-228.127569,0.00021918,2]
[366568706,1750323048519,-151.0,0.00021918,2]
[366568708,1750323048528,-151.0,0.00021918,2]
[366568710,1750323048538,-151.0,0.00021918,2]
[366568712,1750323048548,-2473.59718641,0.00021922,2]
[366568714,1750323048558,-250.0,0.00021932,2]
[366568716,1750323048567,-500.0,0.00021937,2]
[366568718,1750323048577,-498.91171557,0.00021964,2]
[366568720,1750323048586,-295.25693963,0.00021969,6]
[366568722,1750323048596,-489.08698263,0.00021973,2]
[366568724,1750323048606,-505.81065277,0.00021973,2]
[366568726,1750323048615,-500.0,0.00021973,2]
[366568728,1750323048624,-500.0,0.00021973,2]
[366568730,1750323048634,-503.39334109,0.00021973,2]
[366568732,1750323048643,-160.25033379,0.00021973,2]
[366568734,1750323048652,-573.51667435,0.00021973,2]
[366568736,1750323048661,-500.0,0.00021973,2]
[366568738,1750323048671,-500.0,0.00021973,2]
[366568740,1750323048681,-500.0,0.00021973,2]
[366568742,1750323048690,-477.72948211,0.00021973,2]
[366568744,1750323048699,-500.0,0.00021973,2]
[366568746,1750323048709,-500.0,0.00021973,2]
[366568748,1750323048718,-500.0,0.00021973,2]
[366568749,1750323048727,-555.26681945,0.00021973,2]
[366568751,1750323048737,-500.0,0.00021973,2]
[366568754,1750323048746,-500.0,0.00021973,2]
[366568755,1750323048756,-500.0,0.00021973,2]
[366568758,1750323048766,-501.73149143,0.00021973,2]
[366568759,1750323048775,-500.0,0.00021973,2]
[366568761,1750323048784,-500.0,0.00021973,2]
[366568764,1750323048794,-500.0,0.00021973,2]
[366568765,1750323048804,-500.0,0.00021973,2]
[366568768,1750323048814,-317.0,0.00021994,2]
[366568770,1750323048824,-351.42251572,0.00022,2]
[366568772,1750323048834,-1000.0,0.00022,22]
[366568774,1750323048844,-626.99930495,0.00022,2]
[366568776,1750323048853,-200.0,0.00022,3]
[366568777,1750323048863,-1779.08,0.00022,7]
[366568779,1750323048873,-169.0,0.00022,2]
[366568781,1750323048882,-5000.0,0.0002204,2]
[366568783,1750323048891,-500.0,0.00022062,2]
[366568785,1750323048901,-286.08530276,0.00022113,2]
[366568788,1750323048910,-1530.16410559,0.00022141,2]
[366568790,1750323048920,-788905.20341522,0.00022158,2]
[366568804,1750323049053,-1014.04516778,0.00022158,2]
[366568806,1750323049065,-29234.31077127,0.00022158,2]
[366568809,1750323049077,-3112.97989605,0.00022158,2]
[366568811,1750323049088,-1619.82082707,0.00022158,2]
[366568813,1750323049103,-3191.54064329,0.00022158,2]
[366568841,1750323049367,-460.0,0.00021917,6]
[366568843,1750323049377,-1032.1917112,0.00022158,2]
[366568845,1750323049388,-431.9252009,0.00022158,2]
[366572997,1750323115309,438.0,0.00024657,120]
[366572999,1750323328909,2233.25703583,0.00024657,120]
[366573000,1750323382556,-161.5,0.0002518,60]
[366573001,1750323400124,9360.24504248,0.0001901,2]
[366573002,1750323400151,15539.75495752,0.0001901,2]
[366573003,1750323441187,208.050241,0.0001915,120]
[366573004,1750323441521,-150.0,0.0001915,2]
[366573005,1750323451721,150.5,0.00023278,120]
[366573006,1750323452143,150.5,0.00023278,120]
[366573007,1750323452172,150.5,0.00023268,120]
[366573008,1750323452600,150.5,0.00023268,120]
[366573009,1750323452632,150.5,0.00023258,120]
[366573010,1750323452774,500.0,0.000222,120]
[366573011,1750323453084,295.53,0.0002392,120]
[366573012,1750323453120,159.08,0.00023258,120]
[366573013,1750323453710,500.0,0.000222,120]
[366573014,1750323454941,500.0,0.000222,120]
[366573015,1750323455732,500.0,0.000222,120]
[366573016,1750323456525,500.0,0.000222,120]
[366573018,1750323457336,500.0,0.000222,120]
[366573019,1750323458125,500.0,0.000222,120]
[366573020,1750323458901,500.0,0.000222,120]
[366573021,1750323459681,500.0,0.000222,120]
[366573022,1750323460456,500.0,0.000222,120]
[366573023,1750323461681,500.0,0.000222,120]
[366573024,1750323462490,500.0,0.000222,120]
[366573025,1750323463279,500.0,0.000222,120]
[366573026,1750323464056,500.0,0.000222,120]
[366573027,1750323464858,500.0,0.000222,120]
[366573028,1750323465676,500.0,0.000222,120]
[366573029,1750323467725,500.0,0.000222,120]
[366573030,1750323468570,500.0,0.000222,120]
[366573031,1750323469528,500.0,0.000222,120]
[366573032,1750323470322,500.0,0.000222,120]
[366573033,1750323471106,500.0,0.000222,120]
[366573034,1750323471888,500.0,0.000222,120]
[366573035,1750323472672,500.0,0.000222,120]
[366573036,1750323473466,500.0,0.000222,120]
[366573037,1750323474256,500.0,0.000222,120]
[366573038,1750323475035,500.0,0.000222,120]
[366573039,1750323475813,500.0,0.000222,120]
[366573040,1750323476593,500.0,0.000222,120]
[366573041,1750323477376,500.0,0.000222,120]
[366573042,1750323478157,500.0,0.000222,120]
[366573043,1750323478941,500.0,0.000222,120]
[366573044,1750323479722,500.0,0.000222,120]
[366573045,1750323480509,500.0,0.000222,120]
[366573046,1750323481300,500.0,0.000222,120]
[366573047,1750323482082,500.0,0.000222,120]
[366573048,1750323482875,500.0,0.000222,120]
[366573049,1750323483678,500.0,0.000222,120]
[366573050,1750323484617,500.0,0.000222,120]
[366573051,1750323485443,500.0,0.000222,120]
[366573052,1750323486266,500.0,0.000222,120]
[366573053,1750323487257,500.0,0.000222,120]
[366573054,1750323487866,500.0,0.000222,120]
[366573055,1750323488774,500.0,0.000222,120]
[366573056,1750323489444,500.0,0.000222,120]
[366573057,1750323490233,500.0,0.000222,120]
[366573058,1750323491012,500.0,0.000222,120]
[366573059,1750323491788,500.0,0.000222,120]
[366573060,1750323493020,500.0,0.000222,120]
[366573061,1750323493833,500.0,0.000222,120]
[366573062,1750323494627,500.0,0.000222,120]
[366573063,1750323495467,500.0,0.000222,120]
[366573064,1750323496232,500.0,0.000222,120]
[366573065,1750323497045,500.0,0.000222,120]
[366573066,1750323498265,500.0,0.000222,120]
[366573067,1750323499054,500.0,0.000222,120]
[366573068,1750323499848,500.0,0.000222,120]
[366573069,1750323500642,500.0,0.000222,120]
[366573070,1750323501434,500.0,0.000222,120]
[366573071,1750323502225,500.0,0.000222,120]
[366573072,1750323503033,500.0,0.000222,120]
[366573073,1750323503806,500.0,0.000222,120]
[366573074,1750323504590,500.0,0.000222,120]
[366573075,1750323505454,500.0,0.000222,120]
[366573076,1750323506385,500.0,0.000222,120]
[366573077,1750323507169,500.0,0.000222,120]
[366573078,1750323507956,500.0,0.000222,120]
[366573079,1750323508737,500.0,0.000222,120]
[366573080,1750323509519,500.0,0.000222,120]
[366573081,1750323510306,500.0,0.000222,120]
[366573082,1750323511190,500.0,0.000222,120]
[366573083,1750323512551,500.0,0.000222,120]
[366573084,1750323513475,500.0,0.000222,120]
[366573085,1750323514080,500.0,0.000222,120]
[366573086,1750323514784,577.73,0.000222,120]
[366573094,1750323584823,500.0,0.000222,120]
[366573110,1750323809559,-175.15509954,0.00019125,2]
[366573111,1750323824604,175.15509954,0.000191,2]
[366573112,1750323828325,7747.91223538,0.00019,3]
[366573114,1750323881507,162.627749,0.00013699,2]
[366573116,1750323951966,2000.0,0.00018967,120]
[366573126,1750324230767,200.0,0.00024102,120]
[366573195,1750324232311,-324.84490046,0.00019125,2]
[366573198,1750324232320,-58.050241,0.0001915,2]
[366573201,1750324232330,-2417.86700205,0.0001986,2]
[366573204,1750324232339,-163.47731588,0.00019891,2]
[366573207,1750324232348,-500.0,0.00019973,2]
[366573209,1750324232358,-500.0,0.00019973,2]
[366573211,1750324232367,-503.79810707,0.00019973,2]
[366573213,1750324232376,-500.0,0.00019973,2]
[366573216,1750324232385,-300.0,0.00019989,2]
[366573219,1750324232395,-300.0,0.00019989,2]
[366573222,1750324232404,-1081.50553066,0.00019989,2]
[366573633,1750324237945,-500.0,0.00019989,2]
[366573634,1750324237955,-192.91653483,0.00019989,2]
[366573635,1750324237964,-500.3111991,0.00019989,2]
[366573636,1750324237973,-500.0,0.00019989,2]
[366573637,1750324237983,-500.0,0.00019989,2]
[366573638,1750324237992,-500.0,0.00019989,2]
[366573639,1750324238002,-500.0,0.00019989,2]
[366573640,1750324238011,-500.0,0.00019989,2]
[366573641,1750324238020,-500.0,0.00019989,2]
[366573642,1750324238029,-500.0,0.00019989,2]
[366573643,1750324238039,-500.0,0.00019989,2]
[366573644,1750324238048,-500.0,0.00019989,2]
[366573645,1750324238057,-500.0,0.00019989,2]
[366573646,1750324238066,-223.98759207,0.00019989,2]
[366573647,1750324238075,-500.0,0.00019989,2]
[366573649,1750324238085,-500.0,0.00019989,2]
[366573650,1750324238094,-500.0,0.00019989,2]
[366573651,1750324238103,-204.04408097,0.00019989,2]
[366573652,1750324238265,-500.0,0.00019989,2]
[366573653,1750324238275,-500.0,0.00019989,2]
[366573654,1750324238284,-500.0,0.00019989,2]
[366573655,1750324238294,-500.0,0.00019989,2]
[366573656,1750324238303,-500.0,0.00019989,2]
[366573657,1750324238312,-368.81179217,0.00019989,2]
[366573658,1750324238322,-250.10085625,0.00019989,2]
[366573659,1750324238331,-500.0,0.00019989,2]